[Event "Titled Tuesday Blitz February 22 Early 2022"]
[White "Ponkratov, Pavel"]
[Black "Kim, Sergey"]
[WhiteFideId "4157800"]
[BlackFideId "13700570"]
[WhiteElo "2487"]
[BlackElo "2647"]
[Result "1-0"]
[Round "08"]
[TimeControl "180+1"]
[Date "2022.02.22"]
[WhiteClock "0:01:07"]
[BlackClock "0:00:31"]

1. c4 {[%clk 0:02:59]}  Nf6 {[%clk 0:02:57]} 2. Nc3 {[%clk 0:02:59]}  g6 {[%clk 0:02:57]} 3. e4 {[%clk 0:02:59]}  d6 {[%clk 0:02:56]} 4. d4 {[%clk 0:02:59]}  Bg7 {[%clk 0:02:56]} 5. f4 {[%clk 0:03:00]}  O-O {[%clk 0:02:55]} 6. Nf3 {[%clk 0:03:00]}  c5 {[%clk 0:02:56]} 7. d5 {[%clk 0:03:01]}  b5 {[%clk 0:02:56]} 8. cxb5 {[%clk 0:03:00]}  a6 {[%clk 0:02:56]} 9. a4 {[%clk 0:02:59]}  Qa5 {[%clk 0:02:56]} 10. Bd2 {[%clk 0:02:59]}  Qb4 {[%clk 0:02:55]} 11. Qc2 {[%clk 0:02:53]}  c4 {[%clk 0:02:55]} 12. Nd4 {[%clk 0:02:39]}  axb5 {[%clk 0:02:40]} 13. Ncxb5 {[%clk 0:02:33]}  Qc5 {[%clk 0:02:39]} 14. Bxc4 {[%clk 0:02:29]}  Nxe4 {[%clk 0:02:36]} 15. Qxe4 {[%clk 0:02:29]}  Qxc4 {[%clk 0:02:34]} 16. b3 {[%clk 0:02:30]}  Qc5 {[%clk 0:02:33]} 17. Rc1 {[%clk 0:02:29]}  Qb6 {[%clk 0:02:30]} 18. Be3 {[%clk 0:02:14]}  Qa5+ {[%clk 0:02:23]} 19. Kf2 {[%clk 0:02:14]}  Nd7 {[%clk 0:02:16]} 20. Nc6 {[%clk 0:02:13]}  Nf6 {[%clk 0:02:02]} 21. Qxe7 {[%clk 0:02:11]}  Qa6 {[%clk 0:01:35]} 22. Rhe1 {[%clk 0:02:04]}  Nxd5 {[%clk 0:01:31]} 23. Qxd6 {[%clk 0:02:02]}  Nxe3 {[%clk 0:01:31]} 24. Rxe3 {[%clk 0:02:02]}  Be6 {[%clk 0:01:14]} 25. Nc7 {[%clk 0:01:48]}  Qb7 {[%clk 0:01:14]} 26. Nxe6 {[%clk 0:01:46]}  fxe6 {[%clk 0:01:13]} 27. Qxe6+ {[%clk 0:01:45]}  Kh8 {[%clk 0:01:13]} 28. g3 {[%clk 0:01:40]}  Qb6 {[%clk 0:01:04]} 29. Kf3 {[%clk 0:01:34]}  Rac8 {[%clk 0:00:55]} 30. Rc4 {[%clk 0:01:30]}  Qb7 {[%clk 0:00:49]} 31. Kg4 {[%clk 0:01:13]}  Rf6 {[%clk 0:00:46]} 32. Qe7 {[%clk 0:01:12]}  Rc7 {[%clk 0:00:42]} 33. Qd8+ {[%clk 0:01:08]}  Rf8 {[%clk 0:00:42]} 34. Re8 {[%clk 0:01:08]}  Rf7 {[%clk 0:00:35]} 35. Ne5 {[%clk 0:01:07]}  Bxe5 {[%clk 0:00:31]} 36. Rxf8+ {[%clk 0:01:07]} 1-0


[Site "https://www.chess.com"]

[Event "Titled Tuesday Blitz February 22 Early 2022"]
[White "Priasmoro, Novendra"]
[Black "Deac, Bogdan-Daniel"]
[WhiteFideId "7105029"]
[BlackFideId "1226380"]
[WhiteElo "2309"]
[BlackElo "2646"]
[Result "1-0"]
[Round "08"]
[TimeControl "180+1"]
[Date "2022.02.22"]
[WhiteClock "0:01:10"]
[BlackClock "0:00:35"]

1. e4 {[%clk 0:03:00]}  e5 {[%clk 0:02:59]} 2. Nf3 {[%clk 0:03:01]}  Nf6 {[%clk 0:03:00]} 3. Nxe5 {[%clk 0:03:00]}  d6 {[%clk 0:03:00]} 4. Nf3 {[%clk 0:03:00]}  Nxe4 {[%clk 0:03:00]} 5. Nc3 {[%clk 0:03:01]}  Nf6 {[%clk 0:03:00]} 6. d4 {[%clk 0:03:01]}  g6 {[%clk 0:03:00]} 7. Bf4 {[%clk 0:02:57]}  Bg7 {[%clk 0:02:59]} 8. Qd2 {[%clk 0:02:58]}  O-O {[%clk 0:02:57]} 9. O-O-O {[%clk 0:02:58]}  a6 {[%clk 0:02:58]} 10. h4 {[%clk 0:02:58]}  Bg4 {[%clk 0:02:57]} 11. Bh6 {[%clk 0:02:57]}  b5 {[%clk 0:02:53]} 12. a3 {[%clk 0:02:54]}  Nc6 {[%clk 0:02:50]} 13. Bxg7 {[%clk 0:02:49]}  Kxg7 {[%clk 0:02:50]} 14. Be2 {[%clk 0:02:49]}  Re8 {[%clk 0:02:42]} 15. d5 {[%clk 0:02:50]}  Ne7 {[%clk 0:02:12]} 16. Nd4 {[%clk 0:02:27]}  Bxe2 {[%clk 0:02:03]} 17. Ndxe2 {[%clk 0:02:28]}  h5 {[%clk 0:01:06]} 18. Nd4 {[%clk 0:02:12]}  Qd7 {[%clk 0:01:03]} 19. Qg5 {[%clk 0:02:12]}  Nh7 {[%clk 0:00:48]} 20. Qf4 {[%clk 0:02:03]}  Nf6 {[%clk 0:00:47]} 21. Qg5 {[%clk 0:01:42]}  Nh7 {[%clk 0:00:38]} 22. Qg3 {[%clk 0:01:18]}  Qg4 {[%clk 0:00:35]} 23. Qd3 {[%clk 0:01:10]} 1-0


[Site "https://www.chess.com"]

[Event "Titled Tuesday Blitz February 22 Early 2022"]
[White "Prohorov, Olexandr"]
[Black "Rodchenkov, Sergey D."]
[WhiteFideId "14105578"]
[BlackFideId "4168712"]
[WhiteElo "1993"]
[BlackElo "2306"]
[Result "0-1"]
[Round "08"]
[TimeControl "180+1"]
[Date "2022.02.22"]
[WhiteClock "0:00:06"]
[BlackClock "0:00:09"]

1. e4 {[%clk 0:03:00]}  c5 {[%clk 0:02:59]} 2. c3 {[%clk 0:02:59]}  Nf6 {[%clk 0:02:59]} 3. e5 {[%clk 0:02:59]}  Nd5 {[%clk 0:02:58]} 4. Nf3 {[%clk 0:02:59]}  Nc6 {[%clk 0:02:57]} 5. Bc4 {[%clk 0:02:59]}  Nb6 {[%clk 0:02:57]} 6. Bb3 {[%clk 0:02:59]}  d5 {[%clk 0:02:54]} 7. exd6 {[%clk 0:02:53]}  Qxd6 {[%clk 0:02:50]} 8. a4 {[%clk 0:02:46]}  c4 {[%clk 0:02:31]} 9. Bc2 {[%clk 0:02:44]}  Bg4 {[%clk 0:02:32]} 10. a5 {[%clk 0:02:43]}  Nd7 {[%clk 0:02:23]} 11. Qe2 {[%clk 0:02:34]}  Nde5 {[%clk 0:02:18]} 12. h3 {[%clk 0:02:13]}  Bxf3 {[%clk 0:02:12]} 13. gxf3 {[%clk 0:02:13]}  Nd3+ {[%clk 0:02:13]} 14. Bxd3 {[%clk 0:02:12]}  cxd3 {[%clk 0:02:14]} 15. Qe4 {[%clk 0:02:07]}  Qe5 {[%clk 0:02:11]} 16. a6 {[%clk 0:01:50]}  O-O-O {[%clk 0:01:34]} 17. axb7+ {[%clk 0:01:42]}  Kxb7 {[%clk 0:01:35]} 18. Na3 {[%clk 0:01:42]}  f5 {[%clk 0:01:32]} 19. Qe3 {[%clk 0:01:16]}  f4 {[%clk 0:01:21]} 20. Qe4 {[%clk 0:01:13]}  Qxe4+ {[%clk 0:01:13]} 21. fxe4 {[%clk 0:01:12]}  Ne5 {[%clk 0:01:02]} 22. Nb5 {[%clk 0:01:04]}  a6 {[%clk 0:01:01]} 23. Nd4 {[%clk 0:01:05]}  e6 {[%clk 0:00:39]} 24. Nxe6 {[%clk 0:00:50]}  Re8 {[%clk 0:00:39]} 25. Nxf4 {[%clk 0:00:48]}  g5 {[%clk 0:00:20]} 26. Nd5 {[%clk 0:00:43]}  Nf3+ {[%clk 0:00:20]} 27. Kf1 {[%clk 0:00:41]}  Rxe4 {[%clk 0:00:21]} 28. Kg2 {[%clk 0:00:40]}  Nh4+ {[%clk 0:00:21]} 29. Kg3 {[%clk 0:00:39]}  Bd6+ {[%clk 0:00:20]} 30. f4 {[%clk 0:00:39]}  Rf8 {[%clk 0:00:20]} 31. Rf1 {[%clk 0:00:35]}  h6 {[%clk 0:00:20]} 32. Kg4 {[%clk 0:00:28]}  Bxf4 {[%clk 0:00:18]} 33. Kh5 {[%clk 0:00:20]}  Nf5 {[%clk 0:00:18]} 34. Nxf4 {[%clk 0:00:19]}  Ng3+ {[%clk 0:00:17]} 35. Kxh6 {[%clk 0:00:18]}  gxf4 {[%clk 0:00:17]} 36. Rf3 {[%clk 0:00:16]}  Re5 {[%clk 0:00:16]} 37. Kg7 {[%clk 0:00:15]}  Rd8 {[%clk 0:00:13]} 38. Ra4 {[%clk 0:00:16]}  Re1 {[%clk 0:00:12]} 39. Raxf4 {[%clk 0:00:15]}  Nh5+ {[%clk 0:00:11]} 40. Kf7 {[%clk 0:00:14]}  Nxf4 {[%clk 0:00:12]} 41. Rxf4 {[%clk 0:00:14]}  Rxc1 {[%clk 0:00:12]} 42. h4 {[%clk 0:00:14]}  Rc2 {[%clk 0:00:11]} 43. Ke7 {[%clk 0:00:15]}  Rc8 {[%clk 0:00:10]} 44. Rf2 {[%clk 0:00:15]}  a5 {[%clk 0:00:09]} 45. h5 {[%clk 0:00:16]}  Rc1 {[%clk 0:00:09]} 46. Rf3 {[%clk 0:00:14]}  Re1+ {[%clk 0:00:09]} 47. Kd6 {[%clk 0:00:12]}  Rh1 {[%clk 0:00:10]} 48. Kd7 {[%clk 0:00:10]}  Rxh5 {[%clk 0:00:09]} 49. b4 {[%clk 0:00:08]}  axb4 {[%clk 0:00:09]} 50. cxb4 {[%clk 0:00:09]}  Rd5+ {[%clk 0:00:09]} 51. Ke6 {[%clk 0:00:09]}  Rd4 {[%clk 0:00:10]} 52. Ke5 {[%clk 0:00:09]}  Rxb4 {[%clk 0:00:10]} 53. Rf7+ {[%clk 0:00:09]}  Kb6 {[%clk 0:00:10]} 54. Rd7 {[%clk 0:00:10]}  Kb5 {[%clk 0:00:10]} 55. Rxd3 {[%clk 0:00:10]}  Rc5+ {[%clk 0:00:10]} 56. Ke6 {[%clk 0:00:10]}  Ra4 {[%clk 0:00:11]} 57. Rb3+ {[%clk 0:00:09]}  Rb4 {[%clk 0:00:11]} 58. Rd3 {[%clk 0:00:09]}  Kc4 {[%clk 0:00:11]} 59. Rc3+ {[%clk 0:00:08]}  Kd4 {[%clk 0:00:11]} 60. Rh3 {[%clk 0:00:08]}  Rb6+ {[%clk 0:00:12]} 61. Kd7 {[%clk 0:00:07]}  Ra5 {[%clk 0:00:12]} 62. Rh4+ {[%clk 0:00:08]}  Kc5 {[%clk 0:00:10]} 63. Rh5+ {[%clk 0:00:07]}  Kb4 {[%clk 0:00:10]} 64. Rh4+ {[%clk 0:00:06]}  Kb5 {[%clk 0:00:09]} 65. Rh5+ {[%clk 0:00:05]}  Ka6 {[%clk 0:00:10]} 66. Rh2 {[%clk 0:00:05]}  Rd5+ {[%clk 0:00:09]} 67. Kc7 {[%clk 0:00:04]}  Rbd6 {[%clk 0:00:07]} 68. d4 {[%clk 0:00:04]}  Rxd4 {[%clk 0:00:08]} 69. Ra2+ {[%clk 0:00:05]}  Kb5 {[%clk 0:00:08]} 70. Rb2+ {[%clk 0:00:05]}  Kc4 {[%clk 0:00:09]} 71. Rc2+ {[%clk 0:00:06]}  Kd3 {[%clk 0:00:10]} 72. Rc1 {[%clk 0:00:06]}  Rd7+ {[%clk 0:00:10]} 73. Kc8 {[%clk 0:00:05]}  Ke4 {[%clk 0:00:09]} 74. Re1+ {[%clk 0:00:05]}  Kf4 {[%clk 0:00:09]} 75. Rf1+ {[%clk 0:00:06]}  Ke3 {[%clk 0:00:09]} 76. Rd1 {[%clk 0:00:06]}  Rxd1 {[%clk 0:00:09]} 0-1


[Site "https://www.chess.com"]

[Event "Titled Tuesday Blitz February 22 Early 2022"]
[White "Przybylski, Wojciech"]
[Black "Ashiev, Eduard"]
[WhiteFideId "1117599"]
[BlackFideId "4130090"]
[WhiteElo "2133"]
[BlackElo "2004"]
[Result "1-0"]
[Round "08"]
[TimeControl "180+1"]
[Date "2022.02.22"]
[WhiteClock "0:00:41"]
[BlackClock "0:00:09"]

1. e4 {[%clk 0:03:00]}  e5 {[%clk 0:02:57]} 2. Nf3 {[%clk 0:02:58]}  Nc6 {[%clk 0:02:57]} 3. Bb5 {[%clk 0:02:57]}  Nge7 {[%clk 0:02:56]} 4. O-O {[%clk 0:02:56]}  g6 {[%clk 0:02:56]} 5. d4 {[%clk 0:02:54]}  exd4 {[%clk 0:02:55]} 6. Nxd4 {[%clk 0:02:53]}  Bg7 {[%clk 0:02:55]} 7. Be3 {[%clk 0:02:52]}  O-O {[%clk 0:02:55]} 8. c3 {[%clk 0:02:49]}  Nxd4 {[%clk 0:02:17]} 9. Bxd4 {[%clk 0:02:47]}  c6 {[%clk 0:02:16]} 10. Be2 {[%clk 0:02:41]}  Bxd4 {[%clk 0:02:10]} 11. cxd4 {[%clk 0:02:35]}  d5 {[%clk 0:02:09]} 12. e5 {[%clk 0:02:33]}  f6 {[%clk 0:02:04]} 13. f4 {[%clk 0:02:31]}  fxe5 {[%clk 0:02:04]} 14. fxe5 {[%clk 0:02:31]}  Rxf1+ {[%clk 0:01:56]} 15. Bxf1 {[%clk 0:02:30]}  Qb6 {[%clk 0:01:54]} 16. Nc3 {[%clk 0:02:24]}  Nf5 {[%clk 0:01:52]} 17. Ne2 {[%clk 0:02:20]}  Qxb2 {[%clk 0:01:47]} 18. Qc1 {[%clk 0:02:18]}  Qxc1 {[%clk 0:01:44]} 19. Rxc1 {[%clk 0:02:17]}  g5 {[%clk 0:01:41]} 20. Kf2 {[%clk 0:02:13]}  Kg7 {[%clk 0:01:33]} 21. Rb1 {[%clk 0:02:10]}  b6 {[%clk 0:01:28]} 22. Rc1 {[%clk 0:02:09]}  Bb7 {[%clk 0:01:26]} 23. Rc3 {[%clk 0:02:05]}  Rf8 {[%clk 0:01:13]} 24. Ke1 {[%clk 0:02:03]}  h6 {[%clk 0:01:04]} 25. g3 {[%clk 0:02:02]}  Rc8 {[%clk 0:00:44]} 26. Bh3 {[%clk 0:02:00]}  Rf8 {[%clk 0:00:34]} 27. Ra3 {[%clk 0:01:51]}  a5 {[%clk 0:00:31]} 28. Rb3 {[%clk 0:01:42]}  b5 {[%clk 0:00:30]} 29. a3 {[%clk 0:01:05]}  Kg6 {[%clk 0:00:24]} 30. Rf3 {[%clk 0:01:01]}  Rf7 {[%clk 0:00:11]} 31. e6 {[%clk 0:00:51]}  Rf6 {[%clk 0:00:09]} 32. Bxf5+ {[%clk 0:00:41]} 1-0


[Site "https://www.chess.com"]

[Event "Titled Tuesday Blitz February 22 Early 2022"]
[White "Reprintsev, Alexander"]
[Black "Rodchenkov, Vitaly"]
[WhiteFideId "14100541"]
[BlackFideId "4152964"]
[WhiteElo "2126"]
[BlackElo "2337"]
[Result "1-0"]
[Round "08"]
[TimeControl "180+1"]
[Date "2022.02.22"]
[WhiteClock "0:01:08"]
[BlackClock "0:00:47"]

1. e4 {[%clk 0:03:00]}  c5 {[%clk 0:02:59]} 2. b3 {[%clk 0:02:24]}  Nc6 {[%clk 0:02:57]} 3. Bb2 {[%clk 0:02:21]}  d5 {[%clk 0:02:56]} 4. exd5 {[%clk 0:02:20]}  Qxd5 {[%clk 0:02:56]} 5. Nc3 {[%clk 0:02:18]}  Qd8 {[%clk 0:02:56]} 6. Bb5 {[%clk 0:02:15]}  Nf6 {[%clk 0:02:54]} 7. Bxc6+ {[%clk 0:02:14]}  bxc6 {[%clk 0:02:53]} 8. Qf3 {[%clk 0:02:14]}  e6 {[%clk 0:02:49]} 9. Qxc6+ {[%clk 0:02:08]}  Bd7 {[%clk 0:02:48]} 10. Qa6 {[%clk 0:02:08]}  Be7 {[%clk 0:02:46]} 11. Nf3 {[%clk 0:02:07]}  O-O {[%clk 0:02:46]} 12. O-O-O {[%clk 0:02:04]}  Qc7 {[%clk 0:02:34]} 13. Rhe1 {[%clk 0:02:01]}  Rab8 {[%clk 0:02:27]} 14. Ne5 {[%clk 0:01:50]}  Be8 {[%clk 0:02:21]} 15. f4 {[%clk 0:01:49]}  Rb6 {[%clk 0:02:15]} 16. Qd3 {[%clk 0:01:47]}  a5 {[%clk 0:02:00]} 17. a4 {[%clk 0:01:46]}  Rb4 {[%clk 0:01:58]} 18. Nc4 {[%clk 0:01:45]}  Bc6 {[%clk 0:01:54]} 19. g3 {[%clk 0:01:45]}  Rd8 {[%clk 0:01:53]} 20. Qe3 {[%clk 0:01:37]}  Rxc4 {[%clk 0:01:37]} 21. bxc4 {[%clk 0:01:37]}  Qb7 {[%clk 0:01:04]} 22. Nb5 {[%clk 0:01:36]}  Bf3 {[%clk 0:01:01]} 23. d3 {[%clk 0:01:28]}  Bxd1 {[%clk 0:00:59]} 24. Rxd1 {[%clk 0:01:28]}  h6 {[%clk 0:00:58]} 25. Bc3 {[%clk 0:01:21]}  Qg2 {[%clk 0:00:56]} 26. Rd2 {[%clk 0:01:21]}  Qh1+ {[%clk 0:00:55]} 27. Kb2 {[%clk 0:01:19]}  Qc6 {[%clk 0:00:55]} 28. h3 {[%clk 0:01:17]}  Nd7 {[%clk 0:00:54]} 29. g4 {[%clk 0:01:15]}  Bf6 {[%clk 0:00:54]} 30. Bxf6 {[%clk 0:01:15]}  Nxf6 {[%clk 0:00:53]} 31. g5 {[%clk 0:01:13]}  hxg5 {[%clk 0:00:53]} 32. fxg5 {[%clk 0:01:14]}  Nh7 {[%clk 0:00:53]} 33. h4 {[%clk 0:01:14]}  Nf8 {[%clk 0:00:53]} 34. h5 {[%clk 0:01:13]}  Qh1 {[%clk 0:00:49]} 35. h6 {[%clk 0:01:12]}  g6 {[%clk 0:00:47]} 36. Qe5 {[%clk 0:01:08]} 1-0


[Site "https://www.chess.com"]

[Event "Titled Tuesday Blitz February 22 Early 2022"]
[White "Rustemov, Alexander"]
[Black "Manukyan, Artyom"]
[WhiteFideId "4119002"]
[BlackFideId "13305786"]
[WhiteElo "2709"]
[BlackElo "2034"]
[Result "0-1"]
[Round "08"]
[TimeControl "180+1"]
[Date "2022.02.22"]
[WhiteClock "0:00:28"]
[BlackClock "0:00:22"]

1. d4 {[%clk 0:03:00]}  d5 {[%clk 0:02:58]} 2. c4 {[%clk 0:02:52]}  e6 {[%clk 0:02:59]} 3. Nc3 {[%clk 0:02:51]}  Nf6 {[%clk 0:02:59]} 4. cxd5 {[%clk 0:02:50]}  exd5 {[%clk 0:03:00]} 5. Bg5 {[%clk 0:02:50]}  c6 {[%clk 0:03:01]} 6. e3 {[%clk 0:02:50]}  Be7 {[%clk 0:03:01]} 7. Bd3 {[%clk 0:02:49]}  Nbd7 {[%clk 0:03:02]} 8. Qc2 {[%clk 0:02:49]}  Nh5 {[%clk 0:03:00]} 9. Bxe7 {[%clk 0:02:48]}  Qxe7 {[%clk 0:03:01]} 10. O-O-O {[%clk 0:02:47]}  Nb6 {[%clk 0:03:01]} 11. Kb1 {[%clk 0:02:42]}  g6 {[%clk 0:03:02]} 12. Nf3 {[%clk 0:02:36]}  Ng7 {[%clk 0:03:01]} 13. e4 {[%clk 0:01:58]}  Be6 {[%clk 0:02:52]} 14. Rhe1 {[%clk 0:01:54]}  O-O-O {[%clk 0:02:36]} 15. h3 {[%clk 0:01:46]}  Kb8 {[%clk 0:02:34]} 16. e5 {[%clk 0:01:43]}  h5 {[%clk 0:02:26]} 17. b3 {[%clk 0:01:42]}  Bf5 {[%clk 0:02:14]} 18. Bxf5 {[%clk 0:01:37]}  Nxf5 {[%clk 0:02:15]} 19. Ne2 {[%clk 0:01:35]}  Qb4 {[%clk 0:02:08]} 20. Nf4 {[%clk 0:01:31]}  Nc4 {[%clk 0:01:33]} 21. Ka1 {[%clk 0:01:29]}  Na3 {[%clk 0:01:32]} 22. Qd2 {[%clk 0:01:25]}  Qxd2 {[%clk 0:01:11]} 23. Rxd2 {[%clk 0:01:25]}  Rhg8 {[%clk 0:01:02]} 24. e6 {[%clk 0:01:24]}  fxe6 {[%clk 0:01:02]} 25. Rxe6 {[%clk 0:01:17]}  g5 {[%clk 0:00:50]} 26. Nxh5 {[%clk 0:01:16]}  g4 {[%clk 0:00:50]} 27. hxg4 {[%clk 0:01:14]}  Rxg4 {[%clk 0:00:51]} 28. g3 {[%clk 0:01:10]}  Nxd4 {[%clk 0:00:46]} 29. Ne5 {[%clk 0:00:50]}  Rxg3 {[%clk 0:00:35]} 30. Rxd4 {[%clk 0:00:41]}  Nc2+ {[%clk 0:00:34]} 31. Kb2 {[%clk 0:00:40]}  Nxd4 {[%clk 0:00:35]} 32. Re7 {[%clk 0:00:29]}  Rg2 {[%clk 0:00:24]} 33. Rf7 {[%clk 0:00:28]}  Rg5 {[%clk 0:00:22]} 0-1


[Site "https://www.chess.com"]

[Event "Titled Tuesday Blitz February 22 Early 2022"]
[White "Sargissyan, Sargis"]
[Black "Vovk, Orest"]
[WhiteFideId "13303210"]
[BlackFideId "14113490"]
[WhiteElo "2174"]
[BlackElo "2203"]
[Result "0-1"]
[Round "08"]
[TimeControl "180+1"]
[Date "2022.02.22"]
[WhiteClock "0:00:01"]
[BlackClock "0:00:12"]

1. e4 {[%clk 0:03:00]}  g5 {[%clk 0:02:58]} 2. d4 {[%clk 0:02:59]}  h6 {[%clk 0:02:58]} 3. h4 {[%clk 0:02:48]}  g4 {[%clk 0:02:58]} 4. Qxg4 {[%clk 0:02:46]}  d5 {[%clk 0:02:57]} 5. Qe2 {[%clk 0:02:38]}  dxe4 {[%clk 0:02:57]} 6. Qxe4 {[%clk 0:02:38]}  Nf6 {[%clk 0:02:58]} 7. Qd3 {[%clk 0:02:37]}  Nc6 {[%clk 0:02:58]} 8. Nf3 {[%clk 0:02:37]}  Bg4 {[%clk 0:02:58]} 9. Be2 {[%clk 0:02:34]}  Qd5 {[%clk 0:02:56]} 10. Nc3 {[%clk 0:02:33]}  Qh5 {[%clk 0:02:56]} 11. Be3 {[%clk 0:01:42]}  O-O-O {[%clk 0:02:53]} 12. O-O-O {[%clk 0:01:42]}  e5 {[%clk 0:02:51]} 13. Qb5 {[%clk 0:01:42]}  a6 {[%clk 0:02:41]} 14. Qa4 {[%clk 0:01:42]}  e4 {[%clk 0:02:39]} 15. Ng1 {[%clk 0:01:32]}  Bxe2 {[%clk 0:02:35]} 16. Ngxe2 {[%clk 0:01:31]}  Rg8 {[%clk 0:02:14]} 17. Ng3 {[%clk 0:01:18]}  Qa5 {[%clk 0:02:03]} 18. Qxa5 {[%clk 0:01:16]}  Nxa5 {[%clk 0:02:04]} 19. Ncxe4 {[%clk 0:01:15]}  Nxe4 {[%clk 0:02:02]} 20. Nxe4 {[%clk 0:01:16]}  Rxg2 {[%clk 0:02:02]} 21. Rdg1 {[%clk 0:01:13]}  Rxg1+ {[%clk 0:01:58]} 22. Rxg1 {[%clk 0:01:14]}  Nc4 {[%clk 0:01:52]} 23. Rg8 {[%clk 0:00:50]}  h5 {[%clk 0:01:04]} 24. Nd2 {[%clk 0:00:16]}  Nxb2 {[%clk 0:00:42]} 25. Kxb2 {[%clk 0:00:15]}  Ba3+ {[%clk 0:00:41]} 26. Kxa3 {[%clk 0:00:15]}  Rxg8 {[%clk 0:00:42]} 27. Bg5 {[%clk 0:00:14]}  Re8 {[%clk 0:00:42]} 28. Be3 {[%clk 0:00:13]}  Rg8 {[%clk 0:00:39]} 29. Nf3 {[%clk 0:00:12]}  Rg4 {[%clk 0:00:38]} 30. c4 {[%clk 0:00:10]}  f6 {[%clk 0:00:36]} 31. Kb3 {[%clk 0:00:10]}  Kd7 {[%clk 0:00:37]} 32. Kc3 {[%clk 0:00:10]}  Ke6 {[%clk 0:00:37]} 33. Kd3 {[%clk 0:00:11]}  c6 {[%clk 0:00:34]} 34. a4 {[%clk 0:00:08]}  b5 {[%clk 0:00:31]} 35. cxb5 {[%clk 0:00:03]}  cxb5 {[%clk 0:00:31]} 36. axb5 {[%clk 0:00:03]}  axb5 {[%clk 0:00:32]} 37. Bd2 {[%clk 0:00:01]}  Kd5 {[%clk 0:00:29]} 38. Be3 {[%clk 0:00:01]}  b4 {[%clk 0:00:29]} 39. Bd2 {[%clk 0:00:02]}  b3 {[%clk 0:00:29]} 40. Kc3 {[%clk 0:00:02]}  Ke4 {[%clk 0:00:28]} 41. Ne1 {[%clk 0:00:02]}  Rxh4 {[%clk 0:00:25]} 42. Kxb3 {[%clk 0:00:03]}  Rh2 {[%clk 0:00:21]} 43. Kc3 {[%clk 0:00:02]}  Rxf2 {[%clk 0:00:17]} 44. Nc2 {[%clk 0:00:02]}  h4 {[%clk 0:00:14]} 45. d5 {[%clk 0:00:01]}  Kxd5 {[%clk 0:00:13]} 46. Ne3+ {[%clk 0:00:01]}  Ke4 {[%clk 0:00:13]} 47. Ng4 {[%clk 0:00:01]}  Rf3+ {[%clk 0:00:12]} 48. Kc4 {[%clk 0:00:01]}  f5 {[%clk 0:00:12]} 0-1


[Site "https://www.chess.com"]

[Event "Titled Tuesday Blitz February 22 Early 2022"]
[White "Sargsyan, Anna M."]
[Black "Brankovic, Dejan"]
[WhiteFideId "13308130"]
[BlackFideId "921602"]
[WhiteElo "2271"]
[BlackElo "2209"]
[Result "1-0"]
[Round "08"]
[TimeControl "180+1"]
[Date "2022.02.22"]
[WhiteClock "0:01:12"]
[BlackClock "0:00:47"]

1. e4 {[%clk 0:02:56]}  c5 {[%clk 0:03:00]} 2. Nf3 {[%clk 0:02:55]}  d6 {[%clk 0:03:01]} 3. Bb5+ {[%clk 0:02:55]}  Nd7 {[%clk 0:02:59]} 4. O-O {[%clk 0:02:55]}  Nf6 {[%clk 0:02:59]} 5. Re1 {[%clk 0:02:54]}  a6 {[%clk 0:02:59]} 6. Bd3 {[%clk 0:02:54]}  g6 {[%clk 0:02:58]} 7. c3 {[%clk 0:02:54]}  Bg7 {[%clk 0:02:58]} 8. Bc2 {[%clk 0:02:55]}  O-O {[%clk 0:02:58]} 9. d3 {[%clk 0:02:56]}  Ne5 {[%clk 0:02:56]} 10. Nbd2 {[%clk 0:02:56]}  Nxf3+ {[%clk 0:02:56]} 11. Nxf3 {[%clk 0:02:55]}  b5 {[%clk 0:02:53]} 12. h3 {[%clk 0:02:55]}  Rb8 {[%clk 0:02:52]} 13. Be3 {[%clk 0:02:55]}  Nd7 {[%clk 0:02:51]} 14. Qd2 {[%clk 0:02:55]}  Re8 {[%clk 0:02:51]} 15. a3 {[%clk 0:02:52]}  a5 {[%clk 0:02:44]} 16. d4 {[%clk 0:02:52]}  Qc7 {[%clk 0:02:38]} 17. Bd3 {[%clk 0:02:40]}  b4 {[%clk 0:02:37]} 18. axb4 {[%clk 0:02:39]}  axb4 {[%clk 0:02:37]} 19. cxb4 {[%clk 0:02:34]}  Rxb4 {[%clk 0:02:32]} 20. e5 {[%clk 0:02:27]}  Qb8 {[%clk 0:02:18]} 21. Ra2 {[%clk 0:02:18]}  cxd4 {[%clk 0:02:13]} 22. Nxd4 {[%clk 0:02:13]}  Nxe5 {[%clk 0:02:01]} 23. Bf1 {[%clk 0:02:13]}  Bd7 {[%clk 0:01:59]} 24. Rc1 {[%clk 0:02:01]}  Rb7 {[%clk 0:01:44]} 25. f4 {[%clk 0:01:58]}  Rd8 {[%clk 0:01:27]} 26. Qf2 {[%clk 0:01:45]}  Rc8 {[%clk 0:00:57]} 27. Rxc8+ {[%clk 0:01:42]}  Qxc8 {[%clk 0:00:55]} 28. fxe5 {[%clk 0:01:42]}  Bxe5 {[%clk 0:00:54]} 29. Ba6 {[%clk 0:01:34]}  Qb8 {[%clk 0:00:53]} 30. Bxb7 {[%clk 0:01:33]}  Qxb7 {[%clk 0:00:54]} 31. Qf3 {[%clk 0:01:31]}  Qb4 {[%clk 0:00:51]} 32. Nc2 {[%clk 0:01:11]}  Qb3 {[%clk 0:00:48]} 33. Ra8+ {[%clk 0:01:11]}  Kg7 {[%clk 0:00:47]} 34. Bh6+ {[%clk 0:01:12]} 1-0


[Site "https://www.chess.com"]